bitfinex/quotes_SOLUSD_20230111
["timestamp","ask_amount","ask_price","bid_price","bid_amount"]
[1673431146592,37.0,16.088,16.075,5.640379]
[1673431147753,66.63,16.088,16.075,5.640379]
[1673431148279,175.6016,16.089,16.075,5.640379]
[1673431149426,175.6016,16.089,16.076,17.0]
[1673431150052,20.0,16.088,16.076,17.0]
[1673431151641,175.6016,16.089,16.076,17.0]
[1673431152367,128.9716,16.089,16.077,20.0]
[1673431152800,128.9716,16.089,16.076,46.67]
[1673431153209,128.9716,16.089,16.075,52.310379]
[1673431155013,20.0,16.088,16.075,52.310379]
[1673431155629,66.63,16.088,16.075,5.640379]
[1673431155839,20.0,16.088,16.075,5.640379]
[1673431156994,17.0,16.087,16.075,5.640379]
[1673431159322,20.0,16.086,16.075,5.640379]
[1673431160160,46.64,16.085,16.075,5.640379]
[1673431160468,20.0,16.084,16.075,5.5295245]
[1673431160685,63.65,16.083,16.075,5.5295245]
[1673431160875,157.0635,16.083,16.075,5.5295245]
[1673431161210,20.0,16.082,16.075,5.5295245]
[1673431161402,157.0635,16.083,16.075,5.5295245]
[1673431161837,20.0,16.082,16.075,5.5295245]
[1673431165620,26.35,16.08,16.075,5.5295245]
[1673431165832,20.0,16.078,16.075,5.5295245]
[1673431167082,20.0,16.079,16.075,5.5295245]
[1673431167809,20.0,16.08,16.064,46.7]
[1673431168018,20.0,16.079,16.064,46.7]
[1673431168983,20.0,16.079,16.065,20.0]
[1673431169191,20.0,16.079,16.066,63.7]
[1673431172684,20.0,16.079,16.067,34.60078295]
[1673431172878,220.1058,16.083,16.069,20.0]
[1673431173210,220.1058,16.083,16.07,66.69]
[1673431173401,220.1058,16.083,16.071,17.0]
[1673431173611,20.0,16.082,16.071,17.0]
[1673431173821,110.4135,16.083,16.071,17.0]
[1673431174030,110.4135,16.083,16.072,20.0]
[1673431174357,110.4135,16.083,16.073,17.0]
[1673431174565,110.4135,16.083,16.073,63.68]
[1673431174891,110.4135,16.083,16.073,17.0]
[1673431176146,110.4135,16.083,16.072,46.68]
[1673431176147,20.0,16.082,16.072,46.68]
[1673431176359,20.0,16.082,16.07,20.0]
[1673431176571,20.0,16.082,16.069,40.0]
[1673431176760,110.4135,16.083,16.07,46.69]
[1673431176970,110.4135,16.083,16.071,37.0]
[1673431177197,110.4135,16.083,16.072,66.68]
[1673431178333,110.2995006,16.083,16.072,66.68]
[1673431178892,110.2995006,16.083,16.073,17.0]
[1673431179076,110.2995006,16.083,16.074,46.68]
[1673431179287,110.2995006,16.083,16.073,46.68]
[1673431179846,110.2995006,16.083,16.074,17.0]
[1673431183513,110.2995006,16.083,16.072,46.68]
[1673431183726,110.2995006,16.083,16.073,17.0]
[1673431184457,20.0,16.082,16.073,17.0]
[1673431184663,20.0,16.082,16.071,20.0]
[1673431184873,20.0,16.082,16.072,17.0]
[1673431185843,110.2995006,16.083,16.072,17.0]
[1673431186030,110.2995006,16.083,16.072,63.68]
[1673431186240,20.0,16.082,16.071,20.0]
[1673431186464,17.0,16.081,16.068,20.0]
[1673431187967,110.2995006,16.083,16.07,20.0]
[1673431188282,110.2995006,16.083,16.071,20.0]
[1673431188483,110.2995006,16.083,16.072,46.68]
[1673431188698,110.2995006,16.083,16.073,17.0]
[1673431188899,110.2995006,16.083,16.074,66.68]
[1673431189319,118.0199,16.088,16.074,20.0]
[1673431189738,118.0199,16.088,16.075,17.0]
[1673431191645,116.1848,16.092,16.076,66.67]
[1673431191835,116.1848,16.092,16.077,17.0]
[1673431192052,116.1848,16.092,16.078,66.66]
[1673431192263,20.0,16.091,16.078,20.0]
[1673431192683,116.1848,16.092,16.078,20.0]
[1673431192896,17.0,16.091,16.078,20.0]
[1673431196053,20.0,16.09,16.078,20.0]
[1673431197432,37.0,16.091,16.078,20.0]
[1673431198166,26.12,16.09,16.078,20.0]
[1673431199222,26.12,16.09,16.079,20.0]
[1673431199428,26.12,16.09,16.081,20.0]
[1673431200287,116.1848,16.092,16.081,20.0]
[1673431200808,116.1848,16.092,16.083,20.0]
[1673431201433,116.1848,16.092,16.084,17.0]
[1673431203541,46.6,16.099,16.084,17.0]
[1673431203753,163.7134,16.103,16.085,21.92]
[1673431203955,66.6,16.1,16.085,21.92]
[1673431204172,66.6,16.1,16.085,36.52078295]
[1673431204489,66.6,16.1,16.087,20.0]
[1673431205109,66.6,16.1,16.087,34.60078295]
[1673431205321,66.6,16.1,16.088,17.0]
[1673431206381,17.0,16.099,16.085,20.0]
[1673431206590,46.61,16.098,16.083,20.0]
[1673431206779,20.0,16.097,16.083,20.0]
[1673431207200,46.61,16.098,16.083,20.0]
[1673431208905,46.61,16.098,16.084,17.0]
[1673431220478,20.0,16.097,16.084,17.0]
[1673431220895,20.0,16.097,16.082,46.65]
[1673431221118,26.17,16.09,16.076,90.78069492]
[1673431221327,66.63,16.089,16.071,132.8765]
[1673431221525,66.63,16.089,16.071,147.47364066]
[1673431221961,66.63,16.089,16.073,20.0]
[1673431222180,180.8268,16.089,16.073,20.0]
[1673431222364,180.8268,16.089,16.074,17.0]
[1673431222574,180.8268,16.089,16.073,20.0]
[1673431223205,180.8268,16.089,16.074,14.59714066]
[1673431223435,114.1968,16.089,16.076,20.0]
[1673431223646,114.1968,16.089,16.077,66.67]
[1673431223851,114.1968,16.089,16.078,38.92]
[1673431224067,114.1968,16.089,16.079,20.0]
[1673431224273,114.1968,16.089,16.08,17.0]
[1673431225110,116.3409,16.092,16.08,17.0]
[1673431226257,116.3409,16.092,16.081,15.55714066]
[1673431226473,116.3409,16.092,16.081,16.51714066]
[1673431226896,116.3409,16.092,16.082,17.0]
[1673431227852,116.3409,16.092,16.081,1.92]
[1673431228059,46.61,16.096,16.082,14.59714066]
[1673431228266,26.11,16.1,16.082,14.59714066]
[1673431228267,46.61,16.098,16.083,18.92]
[1673431228488,46.6,16.099,16.084,20.0]
[1673431228897,46.6,16.099,16.085,17.0]
[1673431230786,46.6,16.099,16.086,0.96]
[1673431231000,46.6,16.099,16.086,1.92]
[1673431231213,46.6,16.099,16.083,66.65]
[1673431231425,20.0,16.098,16.083,20.0]
[1673431231656,46.61,16.097,16.083,20.0]
[1673431233535,46.61,16.097,16.084,17.0]
[1673431235108,20.0,16.096,16.082,20.0]
[1673431236777,20.0,16.096,16.083,17.0]
[1673431240680,20.0,16.096,16.081,66.66]
[1673431243626,46.61,16.097,16.081,66.66]
[1673431243942,46.61,16.097,16.081,80.84893604]
[1673431244151,66.61,16.098,16.081,80.84893604]
[1673431244358,66.61,16.098,16.081,66.66]
[1673431250255,66.61,16.098,16.081,46.66]
[1673431250465,17.0,16.097,16.081,46.66]
[1673431250663,20.0,16.095,16.081,46.66]
[1673431251310,63.62,16.094,16.078,46.66]
[1673431251500,20.0,16.093,16.078,46.66]
[1673431251715,118.1839,16.092,16.078,46.66]
[1673431254446,118.1839,16.092,16.08,20.0]
[1673431257504,118.1839,16.092,16.079,20.0]
[1673431257928,118.1839,16.092,16.08,20.0]
[1673431264770,118.1839,16.092,16.081,20.0]
[1673431274121,118.1839,16.092,16.079,20.0]
[1673431275068,118.1839,16.092,16.08,20.0]
[1673431275277,118.1839,16.092,16.081,20.0]
[1673431282859,17.0,16.091,16.081,20.0]
[1673431284536,17.0,16.091,16.075,20.0]
[1673431284537,72.78,16.09,16.075,20.0]
[1673431284726,37.0,16.089,16.075,20.0]
[1673431286010,20.0,16.088,16.075,20.0]
[1673431286225,17.0,16.087,16.074,164.9521]
[1673431286625,17.0,16.087,16.075,20.0]
[1673431286836,46.64,16.086,16.074,164.9521]
[1673431287046,20.0,16.085,16.07,46.69]
[1673431287260,63.65,16.084,16.068,66.69]
[1673431287476,116.778,16.083,16.068,66.69]
[1673431287673,116.778,16.083,16.07,20.0]
[1673431288099,20.0,16.082,16.07,20.0]
[1673431288315,116.778,16.083,16.07,20.0]
[1673431289396,116.778,16.083,16.071,17.0]
[1673431294121,116.778,16.083,16.072,20.0]
[1673431296216,46.64,16.087,16.073,17.0]
[1673431296423,46.64,16.087,16.074,20.0]
[1673431296958,46.64,16.087,16.075,17.0]
[1673431308035,17.0,16.086,16.074,20.0]
[1673431308361,46.64,16.087,16.074,20.0]
[1673431311844,17.0,16.086,16.074,20.0]
[1673431312143,46.64,16.085,16.074,20.0]
[1673431313704,46.64,16.085,16.072,20.0]
[1673431313918,46.64,16.085,16.073,17.0]
[1673431317705,20.0,16.084,16.07,20.0]
[1673431317917,63.65,16.083,16.07,20.0]
[1673431318133,26.15,16.08,16.071,20.0]
[1673431318444,26.15,16.08,16.068,20.0]
[1673431319819,26.15,16.08,16.067,20.0]
[1673431320031,26.15,16.08,16.068,17.0]
[1673431320236,26.15,16.08,16.069,20.0]
[1673431320437,46.65,16.083,16.069,20.0]
[1673431320647,46.65,16.083,16.07,17.0]
[1673431320869,46.65,16.083,16.071,20.0]
[1673431321296,46.65,16.083,16.072,17.0]
[1673431322444,46.65,16.083,16.071,20.0]
[1673431322664,20.0,16.082,16.068,66.69]
[1673431322847,20.0,16.082,16.069,17.0]
[1673431323057,20.0,16.082,16.07,20.0]
[1673431324114,26.15,16.08,16.07,20.0]
[1673431324638,26.15,16.08,16.066,66.7]
[1673431324639,26.15,16.08,16.067,20.0]
[1673431324843,26.15,16.08,16.068,17.0]
[1673431325157,26.15,16.08,16.069,20.0]
[1673431327377,26.15,16.08,16.067,20.0]
[1673431327692,26.15,16.08,16.066,66.7]
[1673431327905,26.15,16.08,16.067,17.0]
[1673431328117,26.15,16.08,16.068,20.0]
[1673431330219,32.54866694,16.096,16.07,26.33]
[1673431330425,105.32,16.1,16.07,26.33]
[1673431330426,145.88,16.1,16.08,26.33]
[1673431330622,145.88,16.1,16.081,68.58]
[1673431330832,145.88,16.1,16.081,200.35802921]
[1673431331054,192.48,16.1,16.081,282.42213933]
[1673431331269,192.48,16.1,16.082,170.41721099]
[1673431331484,192.48,16.1,16.083,83.65]
[1673431331802,192.48,16.1,16.083,97.83893604]
[1673431331988,145.88,16.1,16.084,96.25304616]
[1673431332199,145.88,16.1,16.085,66.64]
[1673431332513,145.88,16.1,16.086,113.25304616]
[1673431332725,20.0,16.099,16.086,113.25304616]
[1673431333354,37.0,16.098,16.084,46.65]
[1673431333572,37.0,16.098,16.082,46.65]
[1673431334528,37.0,16.098,16.083,17.0]
[1673431334843,37.0,16.098,16.084,46.65]
[1673431335262,20.0,16.097,16.084,46.65]
[1673431335581,20.0,16.095,16.082,46.65]
[1673431335791,20.0,16.095,16.081,20.0]
[1673431335985,17.0,16.094,16.08,20.0]
[1673431336187,63.62,16.094,16.08,20.0]
[1673431336401,20.0,16.093,16.08,20.0]
[1673431336613,17.0,16.092,16.079,20.0]
[1673431337139,17.0,16.092,16.08,46.66]
[1673431337343,17.0,16.092,16.081,20.0]
[1673431337570,17.0,16.092,16.079,40.0]
[1673431338088,17.0,16.093,16.08,17.0]
[1673431338300,17.0,16.093,16.081,20.0]
[1673431340212,20.0,16.092,16.081,20.0]
[1673431340609,20.0,16.092,16.079,20.0]
[1673431342949,37.0,16.093,16.079,20.0]
[1673431343140,37.0,16.093,16.079,40.0]
[1673431343345,17.0,16.093,16.079,40.0]
[1673431343777,17.0,16.093,16.079,20.0]
[1673431343992,17.0,16.093,16.08,316.8515226]
[1673431344307,17.0,16.093,16.081,20.0]
[1673431346720,17.0,16.093,16.081,40.0]
[1673431346930,17.0,16.093,16.081,20.0]
[1673431347251,17.0,16.093,16.081,40.0]
[1673431350492,17.0,16.093,16.081,20.0]
[1673431350925,17.0,16.092,16.081,40.0]
[1673431351133,17.0,16.094,16.081,40.0]
[1673431351566,17.0,16.094,16.082,20.0]
[1673431351749,17.0,16.095,16.082,20.0]
[1673431353135,17.0,16.095,16.081,40.0]
[1673431354294,46.61,16.096,16.082,20.0]
[1673431354605,66.61,16.097,16.081,40.0]
[1673431355548,66.61,16.097,16.082,20.0]
[1673431355763,17.0,16.096,16.082,20.0]
[1673431356072,46.61,16.095,16.082,20.0]
[1673431356284,17.0,16.094,16.082,20.0]
[1673431356904,17.0,16.095,16.082,20.0]
[1673431358603,17.0,16.095,16.081,40.0]
[1673431359984,17.0,16.095,16.081,20.0]
[1673431362599,20.0,16.094,16.081,20.0]
[1673431362806,17.0,16.093,16.081,20.0]
[1673431365745,26.27,16.09,16.076,46.67]
[1673431365956,17.0,16.089,16.075,46.67]
[1673431366270,66.63,16.088,16.07,46.69]
[1673431366478,17.0,16.087,16.068,46.69]
[1673431366693,35.75512149,16.087,16.068,46.69]
[1673431366906,20.0,16.086,16.068,46.69]
[1673431367120,17.0,16.085,16.069,20.0]
[1673431367307,17.0,16.085,16.07,46.69]
[1673431367520,17.0,16.085,16.071,20.0]
[1673431367829,17.0,16.085,16.072,46.68]
[1673431368035,20.0,16.084,16.069,46.69]
[1673431368264,17.0,16.083,16.069,46.69]
[1673431369099,17.0,16.083,16.07,20.0]
[1673431369311,17.0,16.083,16.071,46.68]
[1673431370793,17.0,16.083,16.072,20.0]
[1673431375241,17.0,16.083,16.071,66.68]
[1673431375242,17.0,16.083,16.071,46.68]
[1673431376815,17.0,16.083,16.072,20.0]
[1673431378270,20.0,16.082,16.071,46.68]
[1673431378486,26.33,16.08,16.068,46.69]
[1673431378692,20.0,16.079,16.067,46.7]
[1673431378905,17.0,16.078,16.067,46.7]
[1673431379844,20.0,16.079,16.068,17.0]
[1673431380055,20.0,16.079,16.069,20.0]
[1673431382697,20.0,16.079,16.068,20.0]
[1673431385210,20.0,16.079,16.067,46.7]
[1673431385432,17.0,16.078,16.067,46.7]
[1673431385636,17.0,16.078,16.066,46.7]
[1673431392393,17.0,16.078,16.067,20.0]
[1673431393971,17.0,16.078,16.066,46.7]
[1673431394580,17.0,16.078,16.067,20.0]
[1673431398394,17.0,16.078,16.066,46.7]
[1673431398607,17.0,16.078,16.064,46.7]
[1673431399427,20.0,16.077,16.064,46.7]
[1673431399637,17.0,16.076,16.064,46.7]
[1673431400475,17.0,16.076,16.062,46.71]
[1673431401437,17.0,16.076,16.063,20.0]
[1673431402165,17.0,16.077,16.063,20.0]
[1673431402789,17.0,16.077,16.065,20.0]
[1673431403628,17.0,16.078,16.065,20.0]
[1673431403848,0.96,16.077,16.065,20.0]
[1673431405413,0.96,16.077,16.064,46.7]
[1673431406275,20.96,16.077,16.064,46.7]
[1673431406483,17.0,16.076,16.063,66.21]
[1673431408272,17.0,16.076,16.063,46.71]
[1673431408464,17.0,16.076,16.062,46.71]
[1673431409429,17.0,16.076,16.063,20.0]
[1673431409626,17.0,16.076,16.063,19.5]
[1673431411845,17.0,16.076,16.063,19.5]
[1673431412475,17.0,16.076,16.062,66.71]
[1673431413642,17.0,16.076,16.062,66.21]
[1673431415529,17.0,16.076,16.063,20.0]
[1673431416998,17.0,16.076,16.063,19.5]
[1673431419734,17.0,16.076,16.062,66.21]
[1673431422042,17.0,16.076,16.063,20.0]
[1673431423929,17.0,16.076,16.062,66.21]
[1673431427196,17.0,16.076,16.063,20.0]
[1673431432869,17.0,16.077,16.063,20.0]
[1673431433068,17.0,16.078,16.064,46.7]
[1673431433280,17.0,16.078,16.065,20.0]
[1673431434136,17.0,16.078,16.065,19.5]
[1673431434868,17.0,16.078,16.064,46.7]
[1673431437706,20.0,16.077,16.064,46.7]
[1673431437918,17.0,16.076,16.064,46.7]
[1673431438107,17.0,16.076,16.063,46.71]
[1673431441488,17.0,16.076,16.064,20.0]
[1673431441804,17.0,16.077,16.065,46.7]
[1673431443812,17.0,16.077,16.063,46.71]
[1673431445362,17.0,16.077,16.062,66.71]
[1673431447258,63.67,16.077,16.062,66.71]
[1673431447468,17.0,16.077,16.062,66.71]
[1673431448201,35.75512149,16.077,16.062,46.71]
[1673431448421,20.0,16.076,16.062,46.71]
[1673431448638,17.0,16.075,16.062,46.71]
[1673431452321,17.0,16.075,16.063,20.0]
[1673431452505,17.0,16.075,16.062,46.71]
[1673431455155,46.68,16.074,16.059,46.72]
[1673431455342,17.0,16.073,16.06,20.0]
[1673431457149,26.41,16.07,16.059,46.72]
[1673431457337,20.0,16.068,16.057,46.73]
[1673431457866,0.96,16.067,16.057,46.73]
[1673431458286,20.0,16.068,16.057,46.73]
[1673431458287,20.0,16.069,16.057,46.73]
[1673431459557,0.96,16.068,16.057,46.73]
[1673431459772,0.96,16.068,16.058,17.0]
[1673431460301,0.96,16.068,16.057,46.73]
[1673431460829,20.96,16.068,16.057,46.73]
[1673431461353,20.96,16.068,16.058,17.0]
[1673431461565,0.96,16.068,16.058,17.0]
[1673431462176,0.96,16.068,16.057,46.73]
[1673431462386,0.96,16.068,16.058,17.0]
[1673431462914,20.0,16.069,16.058,17.0]
[1673431463538,20.0,16.069,16.059,46.72]
[1673431463979,20.0,16.069,16.058,46.72]
[1673431465756,116.5186,16.074,16.058,46.72]
[1673431465969,116.5186,16.074,16.06,26.41]
[1673431466176,116.5186,16.074,16.061,66.71]
[1673431466383,116.5186,16.074,16.062,37.0]
[1673431466591,116.5186,16.074,16.064,20.0]
[1673431466808,116.5186,16.074,16.065,46.7]
[1673431467223,0.96,16.073,16.065,46.7]
[1673431472929,0.96,16.073,16.063,46.71]
[1673431477668,0.96,16.073,16.064,20.0]
[1673431483025,0.96,16.073,16.063,46.71]
[1673431483866,0.96,16.073,16.064,17.0]
[1673431487116,17.96,16.073,16.062,46.71]
[1673431487326,0.96,16.072,16.062,46.71]
[1673431487746,0.96,16.071,16.061,66.71]
[1673431488367,0.96,16.07,16.062,37.0]
[1673431495112,0.96,16.07,16.063,46.71]
[1673431495336,20.96,16.069,16.057,46.72]
[1673431495553,20.96,16.069,16.056,115.8067]
[1673431495948,20.96,16.069,16.057,46.72]
[1673431496278,0.96,16.068,16.057,46.72]
[1673431496679,0.96,16.068,16.058,17.0]
[1673431497119,20.96,16.068,16.057,46.72]
[1673431497315,0.96,16.067,16.057,46.72]
[1673431497749,0.96,16.066,16.057,46.72]
[1673431498152,0.96,16.065,16.057,46.72]
[1673431503111,0.96,16.065,16.056,115.8067]
[1673431503430,0.96,16.065,16.054,46.73]
[1673431503628,0.96,16.065,16.053,66.74]
[1673431507425,0.96,16.065,16.054,17.0]
[1673431509624,0.96,16.065,16.053,66.74]
[1673431509838,0.96,16.065,16.053,46.74]
[1673431510153,0.96,16.065,16.052,46.74]
[1673431510569,0.96,16.064,16.052,46.74]
[1673431510779,0.96,16.063,16.052,46.74]
[1673431511216,0.96,16.062,16.052,46.74]
[1673431511631,0.96,16.061,16.052,46.74]
[1673431511856,0.96,16.061,16.053,17.0]
[1673431512703,0.96,16.061,16.054,46.73]
[1673431518486,0.96,16.061,16.053,17.0]
[1673431520795,0.96,16.061,16.053,37.0]
[1673431521550,0.96,16.061,16.052,46.74]
[1673431522688,0.96,16.061,16.053,20.0]
[1673431526161,0.96,16.061,16.054,46.73]
[1673431526480,20.0,16.068,16.055,17.0]
[1673431526687,17.96,16.067,16.055,17.0]
[1673431529005,0.96,16.066,16.055,17.0]
[1673431529719,0.96,16.066,16.054,46.73]
[1673431529936,20.96,16.066,16.052,46.74]
[1673431530672,113.4072,16.065,16.052,46.74]
[1673431530881,1.92,16.064,16.052,46.74]
[1673431531079,1.92,16.064,16.053,17.0]
[1673431531408,21.92,16.064,16.052,46.74]
[1673431532138,1.92,16.064,16.052,46.74]
[1673431532461,1.92,16.064,16.053,20.0]
[1673431533197,20.0,16.063,16.052,46.74]
[1673431533412,0.96,16.062,16.052,46.74]
[1673431533942,0.96,16.061,16.052,46.74]
[1673431539723,0.96,16.061,16.053,20.0]
[1673431539934,0.96,16.061,16.054,46.73]
[1673431540456,0.96,16.061,16.053,20.0]
[1673431541202,0.96,16.061,16.052,46.74]
[1673431543383,113.4072,16.065,16.053,17.0]
[1673431543707,113.4072,16.065,16.055,20.0]
[1673431543926,113.4072,16.065,16.056,63.73]
[1673431544685,20.0,16.069,16.056,63.73]
[1673431544983,20.0,16.069,16.057,20.0]
[1673431545198,20.0,16.069,16.058,63.72]
[1673431546545,20.0,16.069,16.058,46.72]
[1673431546757,20.0,16.069,16.056,46.73]
[1673431546980,20.0,16.068,16.056,46.73]
[1673431554864,20.0,16.069,16.057,37.0]
[1673431555075,20.0,16.069,16.058,46.72]
[1673431555325,20.0,16.069,16.059,17.0]
[1673431556528,20.0,16.07,16.059,17.0]
[1673431557580,1.92,16.069,16.059,17.0]
[1673431558332,20.0,16.07,16.059,17.0]
[1673431559685,1.92,16.069,16.059,17.0]
[1673431560326,20.0,16.07,16.059,17.0]
[1673431561578,1.92,16.069,16.059,17.0]
[1673431563677,21.92,16.069,16.058,46.72]
[1673431563891,21.92,16.069,16.056,46.73]
[1673431564853,21.92,16.069,16.057,17.0]
[1673431565162,1.92,16.069,16.057,17.0]
[1673431565357,1.92,16.069,16.058,46.72]
[1673431565563,1.92,16.069,16.059,17.0]
[1673431566620,21.92,16.069,16.058,17.0]
[1673431567170,1.92,16.069,16.058,17.0]
[1673431569035,46.32,16.07,16.058,17.0]
[1673431569369,46.32,16.07,16.059,20.0]
[1673431569583,46.32,16.07,16.06,17.0]
[1673431571453,20.0,16.07,16.06,17.0]
[1673431573245,46.68,16.073,16.061,20.0]
[1673431573465,116.5186,16.074,16.062,17.0]
[1673431573675,136.10732149,16.079,16.063,46.71]
[1673431573882,117.3522,16.079,16.064,37.0]
[1673431574103,117.3522,16.079,16.065,46.7]
[1673431574298,117.3522,16.079,16.066,17.0]
[1673431574622,117.3522,16.079,16.068,20.0]
[1673431574935,1.92,16.078,16.068,20.0]
[1673431583558,1.92,16.078,16.069,17.0]
[1673431585646,26.41,16.08,16.069,17.0]
[1673431585859,20.0,16.079,16.071,20.0]
[1673431586071,113.4852,16.087,16.072,63.68]
[1673431586494,113.4852,16.087,16.073,20.0]
[1673431586809,113.4852,16.087,16.074,63.68]
[1673431587031,113.4852,16.087,16.075,20.0]
[1673431587220,113.4852,16.087,16.076,17.0]
[1673431590796,113.4852,16.087,16.077,20.0]
[1673431591328,113.4852,16.087,16.078,17.0]
[1673431599751,113.4852,16.087,16.075,66.67]
[1673431600064,113.4852,16.087,16.075,20.0]
[1673431601461,113.4852,16.087,16.076,17.0]
[1673431609021,113.4852,16.087,16.075,20.0]
[1673431609240,20.0,16.085,16.07,20.0]
[1673431609545,20.0,16.085,16.071,20.0]
[1673431610369,66.64,16.086,16.072,17.0]
[1673431612084,46.64,16.086,16.072,17.0]
[1673431612265,46.64,16.086,16.073,20.0]
[1673431612475,1.92,16.085,16.074,17.0]
[1673431623843,113.4852,16.087,16.074,17.0]
[1673431623844,113.4852,16.087,16.075,20.0]
[1673431624051,113.37703912,16.087,16.076,46.67]
[1673431624255,113.37703912,16.087,16.078,20.0]
[1673431624460,113.37703912,16.087,16.079,46.66]
[1673431624680,113.37703912,16.087,16.08,37.0]
[1673431626032,26.24,16.09,16.08,37.0]
[1673431626239,21.92,16.089,16.08,37.0]
[1673431628471,21.92,16.089,16.08,20.0]
[1673431631490,18.75512149,16.088,16.073,66.68]
[1673431631925,1.92,16.087,16.073,66.68]
[1673431632968,1.92,16.087,16.074,17.0]
[1673431633709,1.92,16.087,16.076,20.0]
[1673431639708,1.92,16.087,16.075,46.67]
[1673431639922,18.92,16.087,16.073,66.68]
[1673431640657,1.92,16.087,16.073,66.68]
[1673431640866,1.92,16.087,16.074,17.0]
[1673431642030,18.75512149,16.088,16.074,17.0]
[1673431642244,18.75512149,16.088,16.075,46.67]
[1673431642441,18.75512149,16.088,16.076,37.0]
[1673431642651,20.0,16.089,16.078,20.0]
[1673431643715,1.92,16.088,16.078,20.0]
[1673431645913,20.0,16.089,16.079,46.66]
[1673431646126,20.0,16.089,16.079,63.66]
[1673431646322,20.0,16.091,16.079,63.66]
[1673431646538,20.0,16.091,16.08,20.0]
[1673431646748,20.0,16.091,16.081,63.66]
[1673431646965,20.0,16.091,16.082,20.0]
[1673431647803,20.0,16.091,16.081,63.66]
[1673431648746,20.0,16.091,16.082,20.0]
[1673431649595,20.0,16.091,16.083,17.0]
[1673431654633,20.0,16.091,16.082,17.0]
[1673431655063,20.0,16.091,16.081,17.0]
[1673431658647,20.0,16.091,16.079,46.66]
[1673431660011,20.0,16.091,16.08,17.0]
[1673431661800,20.0,16.091,16.081,20.0]
[1673431662318,20.0,16.091,16.082,17.0]
[1673431666938,18.75512149,16.093,16.082,17.0]